bitfinex/quotes_BTCUSD_20250831
["timestamp","ask_amount","ask_price","bid_price","bid_amount"]
[1756676182734,1.61219978,109240.0,109230.0,0.00645437]
[1756676183144,1.58748116,109240.0,109230.0,0.00645437]
[1756676183354,1.61219978,109240.0,109230.0,0.00645437]
[1756676184826,1.61222867,109240.0,109230.0,0.00645437]
[1756676185724,1.61222865,109240.0,109230.0,0.00645437]
[1756676195631,1.58861224,109240.0,109230.0,0.00645437]
[1756676195830,1.61223848,109240.0,109230.0,0.00645437]
[1756676196252,1.61223849,109240.0,109230.0,0.00645437]
[1756676196614,1.61223861,109240.0,109230.0,0.00645437]
[1756676199510,1.61223898,109240.0,109230.0,0.00645437]
[1756676206638,1.58646738,109240.0,109230.0,0.00645437]
[1756676206938,1.61224284,109240.0,109230.0,0.00645437]
[1756676215781,1.61224332,109240.0,109230.0,0.00645437]
[1756676217584,1.61224385,109240.0,109230.0,0.00645437]
[1756676220065,1.39967364,109240.0,109230.0,0.00645437]
[1756676220264,1.51690875,109240.0,109230.0,0.00645437]
[1756676222315,1.51690875,109240.0,109230.0,0.00441437]
[1756676225248,0.75584737,109240.0,109230.0,0.00651437]
[1756676225454,1.51690875,109240.0,109230.0,0.00651437]
[1756676227217,1.50832253,109240.0,109230.0,0.00651437]
[1756676227364,1.58372071,109240.0,109230.0,0.00651437]
[1756676227766,0.8226592,109240.0,109230.0,0.00651437]
[1756676227970,1.51691627,109240.0,109230.0,0.00651437]
[1756676230228,1.54163489,109240.0,109230.0,0.00651437]
[1756676235342,0.78057351,109240.0,109230.0,0.00651437]
[1756676235514,1.54163489,109240.0,109230.0,0.00651437]
[1756676238126,1.53519867,109240.0,109230.0,0.00651437]
[1756676238380,1.62994266,109240.0,109230.0,0.00651437]
[1756676238962,1.62994267,109240.0,109230.0,0.00651437]
[1756676240187,0.78058497,109240.0,109230.0,0.00651437]
[1756676240400,1.54164635,109240.0,109230.0,0.00651437]
[1756676248913,1.52660444,109240.0,109230.0,0.00651437]
[1756676249144,1.54165132,109240.0,109230.0,0.00651437]
[1756676251070,1.54157132,109240.0,109230.0,0.00651437]
[1756676251287,1.57581235,109240.0,109230.0,0.00651437]
[1756676252120,1.42353235,109240.0,109230.0,0.00651437]
[1756676252326,1.57581235,109240.0,109230.0,0.00651437]
[1756676252771,1.54157149,109240.0,109230.0,0.00651437]
[1756676256073,1.3806931,109240.0,109230.0,0.00651437]
[1756676256257,1.54157129,109240.0,109230.0,0.00651437]
[1756676256476,1.51685267,109240.0,109230.0,0.00651437]
[1756676257498,1.54157129,109240.0,109230.0,0.00651437]
[1756676258122,1.51685267,109240.0,109230.0,0.00651437]
[1756676258303,1.54157129,109240.0,109230.0,0.00651437]
[1756676259398,1.56865147,109240.0,109230.0,0.00651437]
[1756676259799,1.53297195,109240.0,109230.0,0.00651437]
[1756676259981,1.54156975,109240.0,109230.0,0.00651437]
[1756676260361,1.54156973,109240.0,109230.0,0.00651437]
[1756676260967,0.62734835,109240.0,109230.0,0.00651437]
[1756676261233,0.60262973,109240.0,109230.0,0.38704506]
[1756676261436,0.60266308,109240.0,109230.0,0.38704506]
[1756676261630,0.60266308,109240.0,109230.0,0.18961425]
[1756676261866,0.98319377,109240.0,109230.0,0.18961425]
[1756676263594,0.98318845,109240.0,109230.0,0.18961425]
[1756676267162,0.98318447,109240.0,109230.0,0.18961425]
[1756676268714,0.60265378,109240.0,109230.0,0.18961425]
[1756676268897,0.98318447,109240.0,109230.0,0.18961425]
[1756676270438,0.98318447,109240.0,109230.0,0.00651437]
[1756676270742,0.9831759,109240.0,109230.0,0.00651437]
[1756676271320,0.98317578,109240.0,109230.0,0.00651437]
[1756676271517,0.60264482,109240.0,109230.0,0.00651437]
[1756676271879,0.98317551,109240.0,109230.0,0.18961425]
[1756676273134,0.60264482,109240.0,109230.0,0.18961425]
[1756676273315,0.98317551,109240.0,109230.0,0.57014494]
[1756676273460,0.60264482,109240.0,109230.0,0.57014494]
[1756676274178,0.98317551,109240.0,109230.0,0.18961425]
[1756676275322,0.60264482,109240.0,109230.0,0.57014494]
[1756676276374,0.41956171,109240.0,109230.0,0.57014494]
[1756676276555,0.60264482,109240.0,109230.0,0.57014494]
[1756676277538,0.60264482,109240.0,109230.0,0.18961425]
[1756676277842,0.60264482,109240.0,109230.0,0.57014494]
[1756676278625,0.60264482,109240.0,109230.0,0.72266494]
[1756676279032,0.60264482,109240.0,109230.0,0.34213425]
[1756676280681,0.60264482,109240.0,109230.0,0.00651437]
[1756676280885,1.20772612,109240.0,109230.0,0.00147437]
[1756676281090,1.79413174,109240.0,109230.0,0.00147437]
[1756676281307,1.82709868,109240.0,109230.0,0.00147437]
[1756676281520,1.80233838,109240.0,109230.0,0.00147437]
[1756676281734,1.80233677,109240.0,109230.0,0.00147437]
[1756676282185,1.82706867,109240.0,109230.0,0.00147437]
[1756676282394,1.06600729,109240.0,109230.0,0.00147437]
[1756676282597,1.82706867,109240.0,109230.0,0.00147437]
[1756676284038,1.82705808,109240.0,109230.0,0.00147437]
[1756676284283,1.84139152,109240.0,109230.0,0.00147437]
[1756676286100,1.80842458,109240.0,109230.0,0.00147437]
[1756676289303,1.0473632,109240.0,109230.0,0.00147437]
[1756676289564,1.80854458,109240.0,109230.0,0.00147437]
[1756676291148,2.25210831,109240.0,109230.0,0.00147437]
[1756676291390,2.25153682,109240.0,109230.0,0.00147437]
[1756676292764,1.49047544,109240.0,109230.0,0.00147437]
[1756676292964,2.25153682,109240.0,109230.0,0.00147437]
[1756676294458,1.49047544,109240.0,109230.0,0.00147437]
[1756676294657,2.25153682,109240.0,109230.0,0.00147437]
[1756676296105,2.23720338,109240.0,109230.0,0.00147437]
[1756676299240,2.25153626,109240.0,109230.0,0.00147437]
[1756676302220,2.25154009,109240.0,109230.0,0.00147437]
[1756676302573,2.2515428,109240.0,109230.0,0.00147437]
[1756676302976,2.2515428,109240.0,109230.0,0.00447437]
[1756676303549,1.15564509,109240.0,109230.0,0.00660437]
[1756676303736,1.59384388,109240.0,109230.0,0.00660437]
[1756676303942,1.96008169,109240.0,109230.0,0.00660437]
[1756676304152,1.98481359,109240.0,109230.0,0.00660437]
[1756676304636,1.98474218,109240.0,109230.0,0.00660437]
[1756676304994,1.0708408,109240.0,109230.0,0.00660437]
[1756676305212,1.19897595,109240.0,109230.0,0.00660437]
[1756676305419,1.57950664,109240.0,109230.0,0.00660437]
[1756676306925,1.19897595,109240.0,109230.0,0.00660437]
[1756676307130,1.57950664,109240.0,109230.0,0.00660437]
[1756676307573,1.57950664,109240.0,109230.0,0.18970425]
[1756676308003,1.19893595,109240.0,109230.0,0.18970425]
[1756676308222,1.04613595,109240.0,109230.0,0.18970425]
[1756676309066,0.52305284,109240.0,109230.0,0.66321495]
[1756676309224,0.49687805,109240.0,109230.0,0.69074095]
[1756676310197,0.47970572,109240.0,109230.0,0.31021026]
[1756676310378,0.45217572,109240.0,109230.0,0.69074095]
[1756676310581,0.47970172,109240.0,109230.0,0.69074095]
[1756676311412,0.47970172,109240.0,109230.0,0.68974095]
[1756676311943,0.03610172,109240.0,109230.0,0.68974095]
[1756676312101,0.00857572,109240.0,109230.0,0.68974095]
[1756676312793,0.18306643,109250.0,109240.0,0.18308311]
[1756676312961,0.57630874,109250.0,109240.0,0.18608311]
[1756676313199,0.57630874,109250.0,109240.0,0.18821311]
[1756676313627,0.57630473,109250.0,109240.0,0.18821311]
[1756676314131,0.57630473,109250.0,109240.0,0.34297311]
[1756676316282,0.57630466,109250.0,109240.0,0.34497311]
[1756676316599,0.3932383,109250.0,109240.0,0.34497311]
[1756676316791,0.3657123,109250.0,109240.0,0.34497311]
[1756676317456,0.3657123,109250.0,109240.0,0.28519312]
[1756676317615,0.3657123,109250.0,109240.0,0.81852381]
[1756676318051,0.3657123,109250.0,109240.0,0.43799312]
[1756676319653,0.3485721,109250.0,109240.0,0.43799312]
[1756676319841,0.53163846,109250.0,109240.0,0.43799312]
[1756676320125,0.53163846,109250.0,109240.0,0.81852381]
[1756676320907,0.53163846,109250.0,109240.0,0.28519312]
[1756676321122,0.53163846,109250.0,109240.0,0.43795312]
[1756676321329,0.19163846,109250.0,109240.0,0.43795312]
[1756676322271,0.18306636,109250.0,109240.0,0.43795312]
[1756676322663,0.19162845,109250.0,109240.0,0.43795312]
[1756676323215,0.19162845,109250.0,109240.0,0.43803312]
[1756676323419,0.19162813,109250.0,109240.0,0.43803312]
[1756676324003,0.18306636,109250.0,109240.0,0.43803312]
[1756676324217,0.19162813,109250.0,109240.0,0.43803312]
[1756676325129,0.18306636,109250.0,109240.0,0.43803312]
[1756676325929,0.1916287,109250.0,109240.0,0.47192099]
[1756676326091,0.18306636,109250.0,109240.0,0.43803312]
[1756676326291,0.1916287,109250.0,109240.0,0.43803312]
[1756676326498,0.18306636,109250.0,109240.0,0.43803312]
[1756676326873,0.19162917,109250.0,109240.0,0.43803312]
[1756676327489,0.19162979,109250.0,109240.0,0.43803312]
[1756676331490,0.2087664,109250.0,109240.0,0.43803312]
[1756676332225,0.2087664,109250.0,109240.0,0.28519312]
[1756676332464,0.58929709,109250.0,109240.0,0.43791312]
[1756676334309,0.2087664,109250.0,109240.0,0.43791312]
[1756676334535,0.58929709,109250.0,109240.0,0.43791312]
[1756676337191,0.58929709,109250.0,109240.0,0.28519312]
[1756676337429,0.58929709,109250.0,109240.0,0.43807312]
[1756676337850,0.58935439,109250.0,109240.0,0.43807312]
[1756676338436,0.41272956,109250.0,109240.0,0.43807312]
[1756676338637,0.59579592,109250.0,109240.0,0.43807312]
[1756676340341,0.21526523,109250.0,109240.0,0.43807312]
[1756676340536,0.59579592,109250.0,109240.0,0.43807312]
[1756676342620,0.59579592,109250.0,109240.0,0.43799312]
[1756676343395,0.59579592,109250.0,109240.0,0.28519312]
[1756676343584,0.59579592,109250.0,109240.0,0.43799312]
[1756676343990,0.59579895,109250.0,109240.0,0.43799312]
[1756676344908,0.59579895,109250.0,109240.0,0.28519312]
[1756676345115,0.59579895,109250.0,109240.0,0.43815312]
[1756676347275,0.57003858,109250.0,109240.0,0.43815312]
[1756676347474,0.59581378,109250.0,109240.0,0.43815312]
[1756676348202,0.58937044,109250.0,109240.0,0.43815312]
[1756676348407,0.59581378,109250.0,109240.0,0.43815312]
[1756676349629,0.59669378,109250.0,109240.0,0.43815312]
[1756676354448,0.59581378,109250.0,109240.0,0.43815312]
[1756676354652,0.59582249,109250.0,109240.0,0.43815312]
[1756676358161,0.58723136,109250.0,109240.0,0.43815312]
[1756676358311,0.59582952,109250.0,109240.0,0.43815312]
[1756676358512,0.03223247,109250.0,109240.0,0.43815312]
[1756676358711,0.59582952,109250.0,109240.0,0.43815312]
[1756676359131,0.59582954,109250.0,109240.0,0.43815312]
[1756676365477,0.59582942,109250.0,109240.0,0.43815312]
[1756676369016,0.57863877,109250.0,109240.0,0.43815312]
[1756676369223,0.59582916,109250.0,109240.0,0.43815312]
[1756676372751,0.58938274,109250.0,109240.0,0.43815312]
[1756676376590,0.59582915,109250.0,109240.0,0.43815312]
[1756676377365,0.58938274,109250.0,109240.0,0.43815312]
[1756676378601,0.58938274,109250.0,109240.0,0.43819312]
[1756676378780,0.59582774,109250.0,109240.0,0.43819312]
[1756676379466,0.59582738,109250.0,109240.0,0.43819312]
[1756676379809,0.58938274,109250.0,109240.0,0.43819312]
[1756676379992,0.57219228,109250.0,109240.0,0.43819312]
[1756676380144,0.58937578,109250.0,109240.0,0.43819312]
[1756676380785,0.58937578,109250.0,109240.0,0.28523312]
[1756676381110,0.58937578,109250.0,109240.0,0.43783312]
[1756676387269,0.58937197,109250.0,109240.0,0.43783312]
[1756676391064,0.58937143,109250.0,109240.0,0.43783312]
[1756676391706,0.58937137,109250.0,109240.0,0.43783312]
[1756676392771,0.39017858,109250.0,109240.0,0.43783312]
[1756676393356,0.58937137,109250.0,109240.0,0.43783312]
[1756676394725,0.58937145,109250.0,109240.0,0.43783312]
[1756676397034,0.61689445,109250.0,109240.0,0.43783312]
[1756676398525,0.23636376,109250.0,109240.0,0.43783312]
[1756676398719,0.61689445,109250.0,109240.0,0.43783312]
[1756676399788,0.61689445,109250.0,109240.0,0.43771312]
[1756676400115,0.61689445,109250.0,109240.0,0.25463001]
[1756676400334,0.61689445,109250.0,109240.0,0.00404]
[1756676400335,1.0935949,109250.0,109240.0,0.00404]
[1756676400543,0.35232612,109250.0,109240.0,0.00404]
[1756676400758,1.1133875,109250.0,109240.0,0.00404]
[1756676400967,1.4533875,109250.0,109240.0,0.00404]
[1756676401175,1.57111817,109250.0,109240.0,0.00404]
[1756676401378,1.5711111,109250.0,109240.0,0.00404]
[1756676401965,1.72375103,109250.0,109240.0,0.00204]
[1756676402118,1.7237212,109250.0,109240.0,0.00204]
[1756676402323,1.69897054,109250.0,109240.0,0.00204]
[1756676402765,1.7237212,109250.0,109240.0,4e-05]
[1756676403011,1.48654229,109250.0,109240.0,4e-05]
[1756676403360,1.69714065,109250.0,109240.0,4e-05]
[1756676403539,1.60980322,109250.0,109240.0,4e-05]
[1756676403718,1.62413523,109250.0,109240.0,4e-05]
[1756676404325,1.62374523,109250.0,109240.0,4e-05]
[1756676404527,1.62370561,109250.0,109240.0,4e-05]
[1756676406068,0.86264423,109250.0,109240.0,4e-05]
[1756676406211,1.62370561,109250.0,109240.0,4e-05]
[1756676406802,2.06730561,109250.0,109240.0,4e-05]
[1756676410344,1.06046422,109250.0,109240.0,0.00521]
[1756676410563,1.59399491,109250.0,109240.0,0.00521]
[1756676411646,1.59396338,109250.0,109240.0,0.00521]
[1756676412595,1.59396298,109250.0,109240.0,0.00521]
[1756676414958,1.44096298,109250.0,109240.0,0.00521]
[1756676415161,0.85053769,109250.0,109240.0,0.18829311]
[1756676415454,1.01988686,109250.0,109240.0,0.18829311]
[1756676415667,1.06041755,109250.0,109240.0,0.18829311]
[1756676415872,0.87735119,109250.0,109240.0,0.28127312]
[1756676416254,0.8602264,109250.0,109240.0,0.28127312]
[1756676416404,1.2002264,109250.0,109240.0,0.28127312]
[1756676417544,0.81969571,109250.0,109240.0,0.28127312]
[1756676417748,0.81969571,109250.0,109240.0,0.28327312]
[1756676417997,0.81969571,109250.0,109240.0,0.28527312]
[1756676418708,0.37609571,109250.0,109240.0,0.28527312]
[1756676422509,0.376097,109250.0,109240.0,0.28527312]
[1756676423128,0.37609703,109250.0,109240.0,0.28527312]
[1756676423290,0.3904265,109250.0,109240.0,0.28527312]
[1756676427222,0.58649155,109250.0,109240.0,0.28527312]
[1756676427817,0.58649155,109250.0,109240.0,0.31279712]
[1756676428864,0.40342519,109250.0,109240.0,0.31279712]
[1756676429064,0.58649155,109250.0,109240.0,0.31279712]
[1756676430260,0.57216208,109250.0,109240.0,0.31279712]
[1756676431388,0.19163139,109250.0,109240.0,0.31279712]
[1756676431924,0.57216208,109250.0,109240.0,0.31279712]
[1756676433279,0.56359705,109250.0,109240.0,0.31279712]
[1756676433484,0.57216098,109250.0,109240.0,0.31279712]
[1756676437133,0.57216098,109250.0,109240.0,0.28527312]
[1756676438119,0.58929857,109250.0,109240.0,0.28527312]
[1756676442118,0.58929857,109250.0,109240.0,0.28391864]
[1756676444267,0.56359705,109250.0,109240.0,0.28391864]
[1756676444444,0.58934429,109250.0,109240.0,0.28391864]
[1756676445510,0.40627793,109250.0,109240.0,0.28391864]
[1756676447889,0.00858241,109250.0,109240.0,0.28391864]
[1756676448036,0.3891131,109250.0,109240.0,0.28391864]
[1756676448260,0.40628798,109250.0,109240.0,0.28391864]
[1756676454566,0.58935434,109250.0,109240.0,0.28391864]
[1756676455195,0.58935766,109250.0,109240.0,0.28391864]
[1756676455393,0.59092766,109250.0,109240.0,0.28391864]
[1756676458736,0.59092766,109250.0,109240.0,0.43663864]
[1756676459760,0.59092766,109250.0,109240.0,0.28391864]
[1756676459958,0.59092766,109250.0,109240.0,0.43663864]
[1756676460549,0.59092766,109250.0,109240.0,0.28391864]
[1756676460724,0.59092766,109250.0,109240.0,0.43663864]
[1756676460923,0.59092766,109250.0,109240.0,0.28391864]
[1756676461148,0.59092766,109250.0,109240.0,0.43663864]
[1756676461558,0.59092725,109250.0,109240.0,0.43663864]
[1756676462354,0.59092725,109250.0,109240.0,0.28391864]
[1756676462705,0.59736714,109250.0,109240.0,0.43663864]
[1756676462879,0.59092725,109250.0,109240.0,0.43663864]
[1756676464638,0.61071109,109250.0,109240.0,0.43663864]
[1756676464836,0.59353762,109250.0,109240.0,0.43663864]
[1756676465187,0.6107112,109250.0,109240.0,0.43663864]
[1756676465552,0.61071084,109250.0,109240.0,0.43663864]
[1756676465795,0.42607448,109250.0,109240.0,0.43663864]
[1756676466091,0.40629064,109250.0,109240.0,0.43663864]
[1756676466872,0.589357,109250.0,109240.0,0.43663864]
[1756676467307,0.40629064,109250.0,109240.0,0.43663864]
[1756676469403,0.02575995,109250.0,109240.0,0.43663864]
[1756676469605,0.40629064,109250.0,109240.0,0.43663864]
[1756676470005,0.02575995,109250.0,109240.0,0.43663864]
[1756676470807,0.20882631,109250.0,109240.0,0.43663864]
[1756676472534,0.20882631,109250.0,109240.0,0.43642218]
[1756676473173,0.589357,109250.0,109240.0,0.43642218]
[1756676475671,0.58077059,109250.0,109240.0,0.43642218]
[1756676475875,0.58935619,109250.0,109240.0,0.43642218]
[1756676477468,0.2088255,109250.0,109240.0,0.43642218]
[1756676477667,0.58935619,109250.0,109240.0,0.43642218]
[1756676486805,0.58935664,109250.0,109240.0,0.43642218]
[1756676487715,0.20882595,109250.0,109240.0,0.43642218]
[1756676488062,0.58935664,109250.0,109240.0,0.43642218]
[1756676497581,0.40629014,109250.0,109240.0,0.46394518]
[1756676497740,0.58935623,109250.0,109240.0,0.46394518]
[1756676498312,0.57218344,109250.0,109240.0,0.46394518]
[1756676498555,0.58935647,109250.0,109240.0,0.46394518]
[1756676500546,0.48935647,109250.0,109240.0,0.46394518]
[1756676506588,0.30629011,109250.0,109240.0,0.46394518]
[1756676506957,0.48935647,109250.0,109240.0,0.46394518]
[1756676507757,0.30629011,109250.0,109240.0,0.46394518]
[1756676508752,0.30629009,109250.0,109240.0,0.46394518]
[1756676509155,0.30629022,109250.0,109240.0,0.46394518]
[1756676509733,0.48935658,109250.0,109240.0,0.46394518]
[1756676509905,0.13367334,109250.0,109240.0,0.46394518]
[1756676511136,0.02575953,109250.0,109240.0,0.46394518]
[1756676511487,0.40629022,109250.0,109240.0,0.46394518]
[1756676512306,0.40629028,109250.0,109240.0,0.46394518]
[1756676515706,0.58935664,109250.0,109240.0,0.46394518]
[1756676518633,0.20882595,109250.0,109240.0,0.46394518]
[1756676518800,0.40629028,109250.0,109240.0,0.46394518]
[1756676519437,0.58935706,109250.0,109240.0,0.46394518]
[1756676519642,0.58935787,109250.0,109240.0,0.46394518]
[1756676520393,0.4062915,109250.0,109240.0,0.46394518]
[1756676521414,0.00858694,109250.0,109240.0,1.24594538]
[1756676522060,0.56356395,109270.0,109260.0,0.1830496]
[1756676522318,0.60910249,109270.0,109260.0,0.42862961]
[1756676522524,0.60910249,109270.0,109260.0,0.43366961]
[1756676522749,0.60910249,109270.0,109260.0,0.46118861]
[1756676523342,0.58931587,109270.0,109260.0,0.46118861]
[1756676523568,0.40628261,109270.0,109260.0,0.46118861]
[1756676523775,0.59123546,109270.0,109260.0,0.46118861]
[1756676526601,0.59123546,109270.0,109260.0,0.46114861]
[1756676527033,0.21070477,109270.0,109260.0,0.46114861]
[1756676527190,0.59123546,109270.0,109260.0,0.46114861]
[1756676527779,0.20878477,109270.0,109260.0,0.46114861]
[1756676527980,0.21070477,109270.0,109260.0,0.46114861]
[1756676528194,0.59123546,109270.0,109260.0,0.46114861]
[1756676529203,0.56548354,109270.0,109260.0,0.46114861]
[1756676529447,0.59119852,109270.0,109260.0,0.46114861]
[1756676530076,0.02763498,109270.0,109260.0,0.46114861]
[1756676530286,0.40816567,109270.0,109260.0,0.46114861]
[1756676530791,0.02763498,109270.0,109260.0,0.46114861]
[1756676530990,0.59119852,109270.0,109260.0,0.46114861]
[1756676531896,0.40816567,109270.0,109260.0,0.46114861]
[1756676532682,0.74624567,109270.0,109260.0,0.46214861]
[1756676532895,0.74624567,109270.0,109260.0,0.46414861]
[1756676534716,0.36571498,109270.0,109260.0,0.46414861]
[1756676534888,0.74624567,109270.0,109260.0,0.46414861]
[1756676540045,0.73767401,109270.0,109260.0,0.46414861]
[1756676540219,0.7462364,109270.0,109260.0,0.46414861]
[1756676542922,0.36570571,109270.0,109260.0,0.46414861]
[1756676543155,0.7462364,109270.0,109260.0,0.46414861]
[1756676545913,0.36570571,109270.0,109260.0,0.46414861]
[1756676546103,0.72909926,109270.0,109260.0,0.46414861]
[1756676546532,0.74624877,109270.0,109260.0,0.46414861]
[1756676549943,0.36571808,109270.0,109260.0,0.46414861]
[1756676550110,0.74624877,109270.0,109260.0,0.46414861]
[1756676550873,0.72053069,109270.0,109260.0,0.46414861]
[1756676551095,0.74628156,109270.0,109260.0,0.46414861]
[1756676551315,0.36575087,109270.0,109260.0,0.46406861]
[1756676551571,0.36575089,109270.0,109260.0,0.46406861]
[1756676552352,0.02575089,109270.0,109260.0,0.46406861]
[1756676552555,0.02575089,109270.0,109260.0,0.8445993]
[1756676552955,0.02575089,109270.0,109260.0,0.46406861]
[1756676553428,0.00858362,109270.0,109260.0,0.46406861]
[1756676554648,0.72053069,109280.0,109270.0,0.18303285]
[1756676554823,0.77442128,109280.0,109270.0,0.27921286]
[1756676554969,0.74820426,109280.0,109270.0,0.27921286]
[1756676555164,0.74820426,109280.0,109270.0,0.30672986]
[1756676555862,0.74820426,109280.0,109270.0,0.30681732]
[1756676556385,0.02767357,109280.0,109270.0,0.30892732]
[1756676556585,0.02575357,109280.0,109270.0,0.30892732]
[1756676556784,0.58930036,109280.0,109270.0,0.30892732]
[1756676557020,0.40628426,109280.0,109270.0,0.46140732]
[1756676557424,0.40820426,109280.0,109270.0,0.46140732]
[1756676558235,0.02575357,109280.0,109270.0,0.46640732]
[1756676558433,0.40628426,109280.0,109270.0,0.46640732]
[1756676561771,0.4062688,109280.0,109270.0,0.31392732]
[1756676561992,0.4062688,109280.0,109270.0,0.46640732]
[1756676562306,0.38911006,109280.0,109270.0,0.46640732]
[1756676562486,0.40626802,109280.0,109270.0,0.46640732]
[1756676565220,0.58928412,109280.0,109270.0,0.46640732]
[1756676565405,0.58070475,109280.0,109270.0,0.46640732]
[1756676565623,0.40626673,109280.0,109270.0,0.46640732]
[1756676567681,0.58928283,109280.0,109270.0,0.46640732]
[1756676568701,0.58928248,109280.0,109270.0,0.46640732]
[1756676569546,0.40626638,109280.0,109270.0,0.46640732]
[1756676569744,0.02573569,109280.0,109270.0,0.46640732]
[1756676569947,0.58928248,109280.0,109270.0,0.46640732]
[1756676570156,0.40626638,109280.0,109270.0,0.46640732]
[1756676570314,0.58928248,109280.0,109270.0,0.46640732]
[1756676570719,0.20875179,109280.0,109270.0,0.46640732]
[1756676570923,0.58928248,109280.0,109270.0,0.46640732]
[1756676571474,0.58928248,109280.0,109270.0,0.46606777]
[1756676572035,0.20875179,109280.0,109270.0,0.46606777]
[1756676572240,0.58928248,109280.0,109270.0,0.46606777]
[1756676572693,0.20017406,109280.0,109270.0,0.46606777]
[1756676572923,0.58928302,109280.0,109270.0,0.46606777]
[1756676573069,0.40626692,109280.0,109270.0,0.46606777]
[1756676573300,0.40626717,109280.0,109270.0,0.46606777]
[1756676575240,0.58928327,109280.0,109270.0,0.46606777]
[1756676575799,0.58928327,109280.0,109270.0,0.31358777]
[1756676576045,0.58928327,109280.0,109270.0,0.46626777]
[1756676576609,0.20875258,109280.0,109270.0,0.46626777]
[1756676577029,0.58928327,109280.0,109270.0,0.46626777]
[1756676579927,0.20875258,109280.0,109270.0,0.46626777]
[1756676580388,0.58928327,109280.0,109270.0,0.46626777]
[1756676582220,0.58929306,109280.0,109270.0,0.46646777]
[1756676582447,0.58071787,109280.0,109270.0,0.46646777]
[1756676582649,0.20877272,109280.0,109270.0,0.46646777]
[1756676582822,0.58930341,109280.0,109270.0,0.46646777]
[1756676583215,0.9698341,109280.0,109270.0,0.46646777]
[1756676586155,0.96983617,109280.0,109270.0,0.46646777]
[1756676587350,0.78682007,109280.0,109270.0,0.46646777]
[1756676590908,0.02575869,109280.0,109270.0,0.46646777]
[1756676591084,0.40628938,109280.0,109270.0,0.46646777]
[1756676592245,0.02575869,109280.0,109270.0,0.46646777]
[1756676592454,0.78682007,109280.0,109270.0,0.46646777]
[1756676593057,0.02575869,109280.0,109270.0,0.46646777]
[1756676593264,0.78682007,109280.0,109270.0,0.46646777]
[1756676593425,0.7868271,109280.0,109270.0,0.46646777]
[1756676593634,0.7868271,109280.0,109270.0,0.46714777]
[1756676597159,0.78682584,109280.0,109270.0,0.46714777]
[1756676599251,0.02576446,109280.0,109270.0,0.46714777]
[1756676599649,0.78682584,109280.0,109270.0,0.46714777]
[1756676600555,0.78682481,109280.0,109270.0,0.46714777]
[1756676602820,0.02576343,109280.0,109270.0,0.46714777]
[1756676603018,0.78682481,109280.0,109270.0,0.46714777]
[1756676604277,0.76106138,109280.0,109270.0,0.46714777]
[1756676604477,0.78682311,109280.0,109270.0,0.46714777]
[1756676605111,0.77823587,109280.0,109270.0,0.46714777]
[1756676605312,0.7868229,109280.0,109270.0,0.46714777]
[1756676606071,0.76964841,109280.0,109270.0,0.46714777]
[1756676615211,0.76964802,109280.0,109270.0,0.46714777]
[1756676621371,0.38911733,109280.0,109270.0,0.46714777]
[1756676623342,0.76964802,109280.0,109270.0,0.46714777]
[1756676625149,0.00858664,109280.0,109270.0,0.46714777]
[1756676625326,0.38911733,109280.0,109270.0,0.46714777]
[1756676626099,0.38911769,109280.0,109270.0,0.46714777]
[1756676628149,0.16923797,109280.0,109270.0,0.46714777]
[1756676630698,0.008587,109280.0,109270.0,0.46714777]
[1756676630901,0.38911769,109280.0,109270.0,0.46714777]
[1756676634131,0.008587,109280.0,109270.0,0.46714777]
[1756676635255,0.008587,109280.0,109270.0,0.84767846]
[1756676636624,0.38093069,109290.0,109280.0,0.1830161]
[1756676636827,0.38951245,109290.0,109280.0,0.34952611]
[1756676637047,0.38951246,109290.0,109280.0,0.35153611]
[1756676637186,0.38951246,109290.0,109280.0,0.37904711]
[1756676638031,0.38951246,109290.0,109280.0,0.37766688]
[1756676639000,0.38951246,109290.0,109280.0,0.37866688]
[1756676639555,0.38951246,109290.0,109280.0,0.38066688]
[1756676639712,0.38951246,109290.0,109280.0,0.37866688]
[1756676640283,0.38951246,109290.0,109280.0,0.38166688]
[1756676640685,0.3895072,109290.0,109280.0,0.38166688]
[1756676646753,0.38093069,109290.0,109280.0,0.38166688]
[1756676646952,0.38950325,109290.0,109280.0,0.38166688]
[1756676647747,0.38950305,109290.0,109280.0,0.38166688]
[1756676648607,0.01089236,109290.0,109280.0,0.37652688]
[1756676648897,0.39142305,109290.0,109280.0,0.37652688]
[1756676649030,0.39142305,109290.0,109280.0,0.38166688]
[1756676650217,0.01089236,109290.0,109280.0,0.38166688]
[1756676650388,0.00897236,109290.0,109280.0,0.76219757]
[1756676650625,0.00897236,109290.0,109280.0,0.38166688]
[1756676651227,0.00897236,109290.0,109280.0,0.76219757]
[1756676651408,0.00897236,109290.0,109280.0,0.80264235]
[1756676651568,0.00897236,109290.0,109280.0,0.42211166]
[1756676652095,0.0004,109290.0,109280.0,0.80264235]
[1756676652274,0.0089732,109290.0,109280.0,0.80264235]
[1756676653114,0.0004,109290.0,109280.0,0.80264235]
[1756676653463,0.0004,109290.0,109280.0,0.42211166]
[1756676655390,0.00897471,109290.0,109280.0,0.42211166]
[1756676657602,0.0004,109290.0,109280.0,0.42211166]
[1756676658227,0.00897686,109290.0,109280.0,0.42211166]
[1756676658615,0.00897748,109290.0,109280.0,0.42211166]
[1756676662989,0.00897748,109290.0,109280.0,0.38166688]
[1756676666360,0.00897748,109290.0,109280.0,0.42207868]
[1756676668483,0.0004,109290.0,109280.0,0.42207868]
[1756676669214,0.00898874,109290.0,109280.0,0.42207868]
[1756676672411,0.0089891,109290.0,109280.0,0.42207868]
[1756676674996,0.0089891,109290.0,109280.0,0.80260937]
[1756676675954,0.00898952,109290.0,109280.0,0.80260937]
[1756676679509,0.0004,109290.0,109280.0,1.18314006]
[1756676679843,0.00899029,109290.0,109280.0,0.80260937]
[1756676683746,0.00899029,109290.0,109280.0,0.95528937]
[1756676690702,0.00898878,109290.0,109280.0,0.95528937]
[1756676693044,0.00898878,109290.0,109280.0,0.91487757]
[1756676695058,0.00898878,109290.0,109280.0,0.53434688]
[1756676695209,0.00898878,109290.0,109280.0,0.91487757]
[1756676699986,0.00898878,109290.0,109280.0,1.29540826]
[1756676701245,0.00898941,109290.0,109280.0,1.29540826]
[1756676704224,0.00898941,109290.0,109280.0,0.53434688]
[1756676704438,0.00898941,109290.0,109280.0,1.29540826]
[1756676712311,0.00898939,109290.0,109280.0,1.29540826]
[1756676713392,0.49614304,109320.0,109300.0,0.18296817]
[1756676713602,0.87955453,109320.0,109310.0,0.15264]
[1756676713798,0.88147453,109320.0,109310.0,0.15264]
[1756676715576,0.88247453,109320.0,109310.0,0.33560587]
[1756676715752,0.13443384,109320.0,109310.0,0.33560587]
[1756676715953,0.51396453,109320.0,109310.0,0.33560587]
[1756676716101,0.52351998,109320.0,109310.0,0.33560587]
[1756676716315,0.52451998,109320.0,109310.0,0.33560587]
[1756676716742,0.52351998,109320.0,109310.0,0.33560587]
[1756676717185,0.52451998,109320.0,109310.0,0.33560587]
[1756676718302,0.52231998,109320.0,109310.0,0.42858588]
[1756676718635,0.52331484,109320.0,109310.0,0.42858588]
[1756676722383,0.52331017,109320.0,109310.0,0.42858588]
[1756676722925,0.52331001,109320.0,109310.0,0.42858588]